bitfinex/quotes_SOLUSD_20260224
["timestamp","ask_amount","ask_price","bid_price","bid_amount"]
[1771928278295,0.47716093,76.825,76.801,0.46359199]
[1771928280297,13.01676559,76.824,76.801,13.48418708]
[1771928280795,13.01676559,76.824,76.802,0.46359199]
[1771928281300,13.49392652,76.824,76.802,0.46359199]
[1771928283384,0.47716093,76.823,76.802,0.46359199]
[1771928283698,0.47716093,76.819,76.794,0.46359199]
[1771928283894,0.47716093,76.809,76.771,0.28432314]
[1771928284287,0.47716093,76.809,76.771,0.14216157]
[1771928284891,0.47716093,76.809,76.771,0.28432314]
[1771928285500,0.47716093,76.809,76.77,5.22234245]
[1771928285802,0.47716093,76.798,76.767,0.46359199]
[1771928287404,5.69950338,76.81,76.771,0.46359199]
[1771928287703,0.47716093,76.808,76.781,0.46359199]
[1771928287882,0.47716093,76.806,76.781,0.46359199]
[1771928291801,0.47716093,76.804,76.781,0.46359199]
[1771928292416,65.08131866,76.827,76.765,0.28432314]
[1771928292417,0.47716093,76.809,76.783,0.46359199]
[1771928292590,0.47716093,76.808,76.783,0.46359199]
[1771928294326,0.47716093,76.808,76.785,0.46359199]
[1771928294807,13.49590816,76.813,76.785,0.46359199]
[1771928295011,0.47716093,76.812,76.785,0.46359199]
[1771928306513,0.4995684,76.81,76.787,0.45091807]
[1771928307532,0.4995684,76.815,76.788,13.02286815]
[1771928307700,0.4995684,76.815,76.789,0.45091807]
[1771928316426,0.4995684,76.813,76.79,13.02252897]
[1771928316627,0.4995684,76.813,76.79,13.47344704]
[1771928317426,0.4995684,76.813,76.791,0.45091807]
[1771928318327,0.4995684,76.813,76.793,0.45091807]
[1771928320326,13.01879914,76.812,76.793,0.45091807]
[1771928320508,0.4995684,76.811,76.793,0.45091807]
[1771928322228,0.4995684,76.811,76.794,13.02185066]
[1771928322530,0.4995684,76.811,76.794,0.45091807]
[1771928326833,0.4995684,76.809,76.788,13.02271659]
[1771928327036,0.4995684,76.799,76.77,0.45091807]
[1771928327332,5.21622082,76.8,76.719,110.81799534]
[1771928327333,0.4995684,76.779,76.752,0.45091807]
[1771928328237,0.4995684,76.779,76.725,5.36086188]
[1771928328238,0.4995684,76.779,76.738,0.45091807]
[1771928328425,0.4995684,76.769,76.738,0.45091807]
[1771928328942,0.4995684,76.759,76.739,0.45091807]
[1771928330535,0.4995684,76.759,76.74,13.03101381]
[1771928333351,0.4995684,76.759,76.74,0.45091807]
[1771928339452,0.48752335,76.769,76.741,0.49114607]
[1771928339630,0.48752335,76.774,76.741,0.49114607]
[1771928340553,0.48752335,76.774,76.721,111.07537121]
[1771928340554,0.48752335,76.779,76.751,0.49114607]
[1771928341442,0.48752335,76.769,76.751,0.49114607]
[1771928341647,0.48752335,76.759,76.727,0.49114607]
[1771928341848,0.48752335,76.749,76.727,0.49114607]
[1771928342561,5.21622082,76.76,76.717,0.49114607]
[1771928342746,5.21622082,76.75,76.717,0.49114607]
[1771928343442,13.02625436,76.769,76.733,0.49114607]
[1771928343962,5.21622082,76.76,76.733,0.49114607]
[1771928345961,0.48752335,76.759,76.735,0.49114607]
[1771928347069,0.48752335,76.765,76.735,0.49114607]
[1771928347366,13.02487019,76.777,76.741,0.49114607]
[1771928347733,13.02487019,76.777,76.736,0.28432314]
[1771928347734,13.02487019,76.777,76.751,0.49114607]
[1771928348136,0.48752335,76.781,76.753,0.49114607]
[1771928348137,13.02422505,76.78,76.753,0.49114607]
[1771928348963,18.24044587,76.78,76.753,0.49114607]
[1771928349258,18.72796922,76.78,76.753,0.49114607]
[1771928349441,0.48752335,76.779,76.753,0.49114607]
[1771928352459,0.48752335,76.779,76.755,0.49114607]
[1771928355978,0.48752335,76.779,76.757,0.49114607]
[1771928360482,13.51109033,76.784,76.759,0.49114607]
[1771928360663,13.02356698,76.784,76.759,0.49114607]
[1771928361286,13.50802757,76.802,76.771,0.49114607]
[1771928361577,0.48752335,76.801,76.771,0.49114607]
[1771928362158,0.48752335,76.827,76.79,5.21622082]
[1771928362378,0.48752335,76.827,76.791,0.42393136]
[1771928362772,0.48752335,76.827,76.793,0.42393136]
[1771928363154,13.01642673,76.826,76.801,0.42393136]
[1771928363354,0.48752335,76.825,76.801,0.42393136]
[1771928364558,5.31622082,76.84,76.801,0.42393136]
[1771928364559,0.45623847,76.83,76.801,0.42393136]
[1771928366579,0.45623847,76.83,76.802,13.02049425]
[1771928366771,0.45623847,76.83,76.803,0.42393136]
[1771928368893,0.45623847,76.83,76.811,0.42393136]
[1771928370074,0.45623847,76.83,76.822,0.81793663]
[1771928370269,13.01591846,76.829,76.811,0.42393136]
[1771928370474,0.45422352,76.828,76.805,0.42393136]
[1771928370682,0.45422352,76.819,76.787,0.42393136]
[1771928370883,0.45422352,76.819,76.793,0.42393136]
[1771928374392,0.45422352,76.817,76.794,13.02185066]
[1771928376497,0.45422352,76.815,76.783,13.02364685]
[1771928376672,0.45422352,76.815,76.783,13.44757821]
[1771928376870,0.45422352,76.815,76.783,13.02364685]
[1771928377191,0.45422352,76.815,76.784,0.42393136]
[1771928381295,0.45422352,76.813,76.786,0.42393136]
[1771928383398,0.45422352,76.811,76.788,0.42393136]
[1771928383577,0.45422352,76.822,76.801,0.42393136]
[1771928383781,0.45422352,76.829,76.801,0.42393136]
[1771928383979,0.45422352,76.829,76.811,0.42393136]
[1771928386196,0.5,76.838,76.8,5.2160937]
[1771928387378,0.5,76.836,76.801,13.02066379]
[1771928390993,0.5,76.834,76.801,45.57232327]
[1771928391194,0.1,76.84,76.82,5.2160937]
[1771928391396,0.5,76.839,76.82,5.2160937]
[1771928392192,13.51422454,76.839,76.82,5.2160937]
[1771928392399,0.5,76.838,76.82,5.2160937]
[1771928392602,0.5,76.838,76.81,5.2160937]
[1771928393604,0.5,76.838,76.811,13.01896863]
[1771928396094,0.5,76.836,76.811,13.01896863]
[1771928396401,0.2,76.83,76.811,13.01896863]
[1771928397203,0.2,76.82,76.811,13.01896863]
[1771928398397,0.2,76.83,76.811,13.01896863]
[1771928402588,0.4,76.83,76.811,13.01896863]
[1771928402999,0.5,76.829,76.786,103.5]
[1771928403198,0.5,76.828,76.8,5.2160937]
[1771928403392,0.4,76.83,76.81,5.2160937]
[1771928403803,0.4,76.83,76.8,5.2160937]
[1771928404009,0.4,76.83,76.81,5.2160937]
[1771928404413,0.4,76.83,76.81,5.0160937]
[1771928405705,0.4,76.83,76.811,45.56639022]
[1771928406709,0.4,76.83,76.82,5.2160937]
[1771928406910,0.3,76.84,76.82,5.2160937]
[1771928406911,0.3,76.84,76.821,0.49734444]
[1771928407112,0.1,76.85,76.831,0.49734444]
[1771928407413,0.1,76.85,76.84,5.71343814]
[1771928408513,0.1,76.85,76.841,0.49734444]
[1771928409816,0.1,76.86,76.85,0.4973445]
[1771928410018,0.1,76.86,76.85,1.331635]
[1771928410515,0.1,76.86,76.84,5.2160937]
[1771928412401,0.59867222,76.86,76.84,5.2160937]
[1771928415194,13.01083802,76.859,76.832,13.01541024]
[1771928415509,0.49867222,76.858,76.832,13.01541024]
[1771928418220,0.49867222,76.858,76.84,5.2160937]
[1771928418421,0.1,76.86,76.84,5.2160937]
[1771928418721,0.59867222,76.86,76.84,5.2160937]
[1771928419820,0.49867222,76.858,76.832,13.01541024]
[1771928421522,0.49867222,76.856,76.832,13.01541024]
[1771928423726,13.01151519,76.855,76.832,13.01541024]
[1771928423927,0.49867222,76.854,76.832,13.01541024]
[1771928424899,0.49867222,76.854,76.832,13.21541024]
[1771928426027,0.49867222,76.854,76.842,0.2]
[1771928426226,0.49867222,76.854,76.835,13.01481717]
[1771928433736,0.49867222,76.852,76.832,0.2]
[1771928434035,0.49867222,76.852,76.82,5.2160937]
[1771928434228,0.49867222,76.852,76.817,0.20265556]
[1771928435033,0.49867222,76.852,76.821,0.20265556]
[1771928435234,0.1,76.86,76.833,0.14216157]
[1771928435436,0.1,76.86,76.841,0.20265556]
[1771928435845,0.1,76.86,76.843,0.20265556]
[1771928437243,0.2,76.854,76.843,0.20265556]
[1771928438342,0.2,76.854,76.842,0.20265556]
[1771928439043,0.2,76.854,76.842,0.00265556]
[1771928445921,0.49867222,76.878,76.85,5.20800593]
[1771928446127,0.49867222,76.878,76.86,5.20800593]
[1771928446628,0.49867222,76.878,76.842,0.49236562]
[1771928447847,0.48751512,76.869,76.841,13.01388581]
[1771928449341,0.48751512,76.869,76.841,13.50625143]
[1771928449547,0.48751512,76.869,76.842,0.49236562]
[1771928450048,0.48751512,76.867,76.843,13.0135471]
[1771928451370,0.48751512,76.867,76.852,0.2]
[1771928451573,0.48751512,76.865,76.852,0.2]
[1771928451871,0.48751512,76.878,76.853,0.49236562]
[1771928452073,0.48751512,76.878,76.862,0.2]
[1771928452579,0.48751512,76.878,76.852,0.2]
[1771928452871,0.48751512,76.869,76.842,0.2]
[1771928453251,5.20800593,76.86,76.842,1e-08]
[1771928453447,0.48751512,76.849,76.842,1e-08]
[1771928454570,0.48751512,76.859,76.842,1e-08]
[1771928455977,5.30800593,76.88,76.842,1e-08]
[1771928455978,0.45740859,76.849,76.842,1e-08]
[1771928457976,0.45740859,76.847,76.842,1e-08]
[1771928458860,0.19999999,76.839,76.83,0.47742757]
[1771928459679,0.45740859,76.848,76.83,0.47742757]
[1771928460065,0.2,76.859,76.832,0.47742757]
[1771928460380,0.2,76.859,76.841,0.47742757]
[1771928460578,0.1,76.88,76.851,0.47742757]
[1771928460783,13.00745327,76.879,76.851,0.47742757]
[1771928461082,45.52608644,76.879,76.845,0.47742757]
[1771928462583,0.45740859,76.876,76.846,13.49046663]
[1771928462990,0.45740859,76.876,76.847,0.47742757]
[1771928464288,0.45740859,76.875,76.849,0.47742757]
[1771928465266,0.45740859,76.875,76.855,0.2]
[1771928465684,0.45740859,76.875,76.856,0.47742757]
[1771928465888,0.45740859,76.875,76.865,0.2]
[1771928466283,13.46570788,76.874,76.865,0.2]
[1771928467289,0.45740859,76.873,76.865,0.2]
[1771928468089,0.45740859,76.873,76.856,0.47742757]
[1771928468269,0.45740859,76.873,76.855,0.2]
[1771928468891,0.45740859,76.873,76.855,0.67742757]
[1771928469072,0.45740859,76.873,76.856,0.47742757]
[1771928469590,0.45740859,76.871,76.855,0.2]
[1771928472071,0.45740859,76.869,76.855,0.2]
[1771928473876,13.00897619,76.87,76.856,0.47742757]
[1771928474193,13.4658771,76.873,76.856,0.47742757]
[1771928474486,0.45740859,76.872,76.856,0.47742757]
[1771928475885,13.00846851,76.873,76.856,0.47742757]
[1771928476090,11.64840436,76.873,76.85,5.20800593]
[1771928476383,45.52608644,76.879,76.85,5.20800593]
[1771928476582,0.5,76.878,76.85,5.20800593]
[1771928478390,0.5,76.878,76.849,13.01245331]
[1771928478588,0.5,76.876,76.841,13.01388581]
[1771928483903,0.5,76.874,76.841,13.01388581]
[1771928486100,13.50846851,76.873,76.85,5.20800593]
[1771928486307,32.51863317,76.879,76.85,5.20800593]
[1771928486308,0.5,76.877,76.85,5.20800593]
[1771928489602,0.5,76.877,76.851,13.01219242]
[1771928494710,0.5,76.875,76.851,13.01219242]
[1771928496302,0.5,76.875,76.85,5.20800593]
[1771928497210,0.5,76.879,76.85,5.20800593]
[1771928498714,0.5,76.877,76.846,13.01289879]
[1771928499305,0.1,76.88,76.86,5.20800593]
[1771928501215,0.1,76.89,76.87,5.20800593]
[1771928501913,0.1,76.9,76.88,5.20800593]
[1771928502102,0.1,76.91,76.89,5.20800593]
[1771928502411,0.1,76.91,76.9,5.20800593]
[1771928502616,0.1,76.91,76.89,5.20800593]
[1771928503119,0.5,76.909,76.88,5.20800593]
[1771928503319,0.5,76.909,76.88,5.20334226]
[1771928503818,0.5,76.909,76.87,18.21231845]
[1771928505517,13.00254849,76.908,76.87,18.21231845]
[1771928505717,0.5,76.907,76.87,18.21231845]
[1771928506122,0.5,76.899,76.87,18.21231845]
[1771928506507,0.5,76.899,76.87,50.73475893]
[1771928507514,0.5,76.897,76.863,0.28432314]
[1771928507722,0.5,76.897,76.87,5.20334226]
[1771928509728,0.5,76.895,76.86,5.20334226]
[1771928510529,0.5,76.895,76.86,18.2138556]
[1771928512333,0.5,76.893,76.86,50.74052747]
[1771928519533,0.5,76.889,76.836,45.55156436]
[1771928519726,0.5,76.889,76.84,5.20334226]
[1771928520033,0.5,76.879,76.841,0.28432314]
[1771928520336,0.5,76.879,76.85,5.20334226]
[1771928520637,0.5,76.879,76.841,0.28432314]
[1771928522239,0.5,76.879,76.824,9.0546959]
[1771928522240,0.5,76.869,76.842,13.01371645]
[1771928523532,0.5,76.867,76.831,13.29990278]
[1771928524537,0.5,76.867,76.831,45.8388519]
[1771928526840,0.5,76.865,76.831,45.8388519]
[1771928527931,0.5,76.865,76.84,5.20334226]
[1771928528237,51.99477501,76.931,76.85,5.20334226]
[1771928528238,0.5,76.877,76.85,5.20334226]
[1771928529526,0.5,76.877,76.86,5.20334226]
[1771928529940,0.5,76.882,76.86,5.20334226]
[1771928530443,0.5,76.891,76.841,5.64518502]
[1771928530648,0.5,76.891,76.86,5.20334226]
[1771928533639,0.5,76.889,76.861,13.01049947]
[1771928535852,0.5,76.887,76.861,13.01049947]
[1771928537752,0.5,76.892,76.862,0.28432314]
[1771928539454,13.00428161,76.898,76.861,13.01049947]
[1771928539455,0.5,76.889,76.861,13.01049947]
[1771928540255,0.5,76.887,76.854,0.28432314]
[1771928545358,0.5,76.885,76.856,0.28432314]
[1771928545657,5.20334226,76.88,76.851,13.01206393]
[1771928545858,0.5,76.879,76.851,13.01206393]
[1771928550558,0.5,76.877,76.85,5.20334226]
[1771928552359,0.5,76.875,76.851,13.01219242]
[1771928554163,13.00796087,76.876,76.842,13.01367664]
[1771928554164,0.5,76.869,76.842,13.01367664]
[1771928554865,0.5,76.867,76.832,0.14216157]
[1771928555667,0.5,76.867,76.832,0.28432314]
[1771928556577,0.5,76.867,76.84,5.20334226]
[1771928558156,0.5,76.859,76.82,5.20334226]
[1771928558658,0.5,76.859,76.821,0.28432314]
[1771928559757,0.5,76.849,76.81,5.20334226]
[1771928560060,0.5,76.837,76.802,0.28432314]
[1771928560574,0.5,76.837,76.81,5.20334226]
[1771928561473,0.5,76.848,76.82,5.20334226]
[1771928561778,0.5,76.848,76.83,5.20334226]
[1771928562272,0.5,76.855,76.831,13.01557964]
[1771928563672,0.5,76.869,76.84,5.20986934]
[1771928563873,0.5,76.869,76.85,5.20986934]
[1771928564260,0.5,76.868,76.84,5.20986934]
[1771928565678,0.5,76.868,76.834,0.28432314]
[1771928565869,0.5,76.868,76.833,13.01524084]
[1771928566368,65.03269207,76.885,76.82,5.20986934]
[1771928566369,0.5,76.859,76.82,5.20986934]
[1771928571583,0.5,76.857,76.821,13.01727392]
[1771928575782,0.5,76.857,76.83,5.20986934]
[1771928576683,0.5,76.863,76.84,5.20986934]
[1771928577200,0.5,76.873,76.85,5.20986934]
[1771928578486,0.5,76.873,76.851,13.01219242]
[1771928580412,0.5,76.884,76.851,45.54267348]
[1771928580587,13.00677653,76.883,76.851,45.54267348]
[1771928580904,0.5,76.882,76.851,45.54267348]
[1771928582217,0.5,76.879,76.827,5.36086188]
[1771928582387,0.5,76.879,76.85,5.20986934]
[1771928582897,0.5,76.879,76.841,0.28432314]
[1771928583403,0.5,76.879,76.85,5.20986934]
[1771928585198,0.5,76.879,76.851,13.01219242]
[1771928586300,0.5,76.877,76.851,13.01219242]
[1771928587597,0.5,76.877,76.847,32.53211667]
[1771928590692,0.5,76.877,76.851,13.01219242]
[1771928592011,0.5,76.897,76.87,5.20986934]
[1771928593213,0.5,76.895,76.871,13.00880696]
[1771928595417,13.00374475,76.901,76.88,5.20986934]
[1771928595624,0.5,76.9,76.88,5.20986934]
[1771928597424,0.1,76.91,76.882,0.4628222]
[1771928597628,0.1,76.91,76.9,5.20986934]
[1771928597821,0.1,76.91,76.881,13.00711489]
[1771928598810,0.1,76.91,76.881,13.46993709]
[1771928599524,0.47821143,76.908,76.881,13.46993709]
[1771928600730,0.47821143,76.908,76.882,0.4628222]
[1771928603523,13.48091547,76.908,76.882,0.4628222]
[1771928603725,13.48091547,76.908,76.88,5.20986934]
[1771928603726,0.45885031,76.907,76.883,13.00677653]
[1771928607029,0.45885031,76.907,76.89,5.20986934]
[1771928607433,0.45885031,76.907,76.889,13.00559639]
[1771928608535,0.45885031,76.907,76.882,13.48869732]
[1771928608721,0.45885031,76.907,76.883,0.48175162]
[1771928609035,0.45885031,76.907,76.89,5.20986934]
[1771928610437,0.1,76.91,76.891,0.48175162]
[1771928610636,0.1,76.91,76.891,13.48717488]
[1771928610938,0.1,76.91,76.892,0.48175162]
[1771928611638,0.57088409,76.91,76.892,0.48175162]
[1771928614742,0.1,76.91,76.901,0.48175162]
[1771928617145,0.57088409,76.91,76.898,13.00419943]
[1771928618128,0.57088409,76.91,76.893,13.00508498]
[1771928618448,0.57088409,76.91,76.894,0.48175162]
[1771928619443,0.57088409,76.91,76.893,13.00508498]
[1771928620245,0.47088409,76.908,76.883,0.48175162]
[1771928620442,0.47088409,76.908,76.878,0.48175162]
[1771928624053,0.47088409,76.899,76.857,0.48175162]
[1771928624258,0.47088409,76.889,76.857,0.48175162]
[1771928624755,0.47088409,76.879,76.853,0.28432314]
[1771928625249,0.47088409,76.879,76.853,0.76607476]
[1771928625857,0.47088409,76.879,76.855,0.28432314]
[1771928627566,0.47088409,76.879,76.856,13.01134589]
[1771928627956,0.47088409,76.879,76.857,0.48175162]
[1771928630263,0.47088409,76.879,76.858,13.01100731]
[1771928630844,0.47088409,76.879,76.858,13.49275893]
[1771928631344,0.47088409,76.879,76.859,0.48175162]
[1771928634164,0.47088409,76.879,76.86,13.01066874]
[1771928634480,0.47088409,76.878,76.845,32.53266935]
[1771928634762,0.47088409,76.859,76.832,0.48175162]
[1771928635869,0.45379922,76.849,76.821,13.01721682]
[1771928636067,0.45379922,76.839,76.821,13.01721682]
[1771928636263,0.45379922,76.839,76.815,0.28432314]
[1771928636665,0.45379922,76.839,76.816,0.48206033]
[1771928640472,0.45379922,76.839,76.818,0.48206033]
[1771928640976,0.45379922,76.838,76.817,13.01795175]
[1771928642368,0.45379922,76.856,76.825,0.28432314]
[1771928642592,5.20726522,76.86,76.804,57.44082205]
[1771928642593,0.45379922,76.869,76.841,0.48206033]
[1771928643760,0.45379922,76.868,76.841,0.48206033]
[1771928645165,0.45379922,76.868,76.843,0.48206033]
[1771928645360,0.45379922,76.866,76.84,0.48206033]
[1771928645554,0.45379922,76.859,76.84,0.48206033]
[1771928645758,0.45379922,76.859,76.84,13.49594649]
[1771928648480,0.45379922,76.859,76.841,0.48206033]
[1771928648862,5.20726522,76.87,76.841,0.48206033]
[1771928648863,0.45379922,76.869,76.841,0.48206033]
[1771928650782,0.45379922,76.869,76.843,0.48206033]
[1771928654381,13.00931466,76.868,76.844,13.01337775]
[1771928654572,0.45379922,76.867,76.845,0.48206033]
[1771928654887,0.45379922,76.867,76.844,13.01337775]
[1771928655384,13.00931466,76.868,76.821,0.48206033]
[1771928655385,0.45379922,76.849,76.821,0.48206033]
[1771928655886,0.45379922,76.839,76.811,13.01896863]
[1771928656185,0.45379922,76.829,76.801,13.02066379]
[1771928656567,0.45379922,76.829,76.802,0.48206033]
[1771928656980,0.45379922,76.827,76.802,0.48206033]
[1771928657491,0.45379922,76.849,76.821,0.48206033]
[1771928657984,0.45379922,76.849,76.815,0.48206033]
[1771928658489,0.45379922,76.848,76.815,0.48206033]
[1771928662477,0.45379922,76.846,76.817,0.48206033]
[1771928662791,0.45379922,76.839,76.816,13.01812122]
[1771928665480,0.45379922,76.839,76.813,13.01862965]
[1771928666576,0.45379922,76.839,76.815,13.01829069]
[1771928666902,13.01439391,76.838,76.815,13.01829069]
[1771928667090,0.49908326,76.837,76.815,13.48143058]
[1771928668398,0.49908326,76.837,76.808,0.46313989]
[1771928669182,0.49908326,76.837,76.816,0.2]
[1771928670087,0.49908326,76.837,76.826,0.2]
[1771928670906,0.49908326,76.837,76.836,0.2]
[1771928671201,0.49908326,76.837,76.826,0.2]
[1771928679786,0.49908326,76.837,76.82,0.46313989]
[1771928682911,0.49908326,76.837,76.821,0.46313989]
[1771928683817,0.49908326,76.837,76.83,0.2]
[1771928684191,5.20726522,76.85,76.831,0.46313989]
[1771928684192,0.49908326,76.848,76.831,0.46313989]
[1771928684394,0.49908326,76.859,76.831,0.46313989]
[1771928684693,0.49908326,76.859,76.841,0.46313989]
[1771928688317,0.49908326,76.857,76.841,0.46313989]
[1771928689311,0.49908326,76.857,76.84,0.2]
[1771928694805,0.49908326,76.857,76.839,0.46313989]
[1771928697033,0.49908326,76.857,76.841,0.47394709]
[1771928697405,0.49908326,76.857,76.837,0.47394709]
[1771928698122,0.49908326,76.857,76.84,0.47394709]
[1771928698921,0.49908326,76.857,76.849,0.2]
[1771928699914,0.29908326,76.857,76.849,0.2]
[1771928700121,13.01134589,76.856,76.84,0.47394709]
[1771928700715,13.00914542,76.869,76.84,0.47394709]
[1771928700915,5.20930198,76.86,76.839,0.2]
[1771928701317,5.20930198,76.86,76.836,10.20571806]
[1771928701635,5.20930198,76.85,76.812,0.47394709]
[1771928702034,0.48249433,76.849,76.812,0.47394709]
[1771928703138,0.48249433,76.848,76.814,0.47394709]
[1771928703437,0.48249433,76.848,76.821,0.47394709]
[1771928705846,0.48249433,76.848,76.82,5.20930198]
[1771928705847,0.2,76.839,76.823,0.47394709]
[1771928707145,13.21253106,76.849,76.831,0.47394709]
[1771928707146,0.2,76.849,76.831,0.47394709]
[1771928707821,0.2,76.849,76.833,0.47394709]
[1771928709252,0.48249433,76.848,76.833,0.47394709]
[1771928709538,0.48249433,76.848,76.824,13.01672409]
[1771928710045,0.48249433,76.848,76.824,0.47394709]
[1771928712847,0.48249433,76.848,76.826,0.47394709]
[1771928714950,0.48249433,76.848,76.828,0.47394709]
[1771928715326,13.01250443,76.85,76.828,0.47394709]
[1771928715327,0.48249433,76.846,76.828,0.47394709]
[1771928716031,0.48249433,76.85,76.828,0.47394709]
[1771928716956,0.48249433,76.849,76.828,0.47394709]
[1771928717541,0.48249433,76.849,76.829,13.48986555]
[1771928718334,0.48249433,76.849,76.83,0.47394709]
[1771928722652,0.48249433,76.849,76.825,0.47394709]
[1771928723847,0.48249433,76.849,76.826,13.01642673]
[1771928724039,0.48249433,76.849,76.827,0.47078022]
[1771928725957,0.48249433,76.849,76.829,0.49005206]
[1771928730150,0.46852377,76.864,76.831,0.49005206]
[1771928738955,0.46852377,76.862,76.833,0.49005206]
[1771928740458,5.20930198,76.86,76.833,0.49005206]
[1771928740659,0.46852377,76.859,76.833,0.49005206]
[1771928741544,0.46852377,76.858,76.835,0.49005206]
[1771928744168,0.46852377,76.858,76.837,0.49005206]
[1771928747368,0.46852377,76.858,76.839,0.49005206]
[1771928752760,0.46852377,76.858,76.841,0.49005206]
[1771928754690,5.2093825,76.88,76.843,0.49005206]
[1771928754976,13.00745327,76.879,76.843,0.49005206]
[1771928756771,0.47240222,76.876,76.845,0.47646575]
[1771928759567,0.47240222,76.859,76.829,0.47646575]
[1771928759881,0.47240222,76.859,76.832,0.47646575]
[1771928761179,0.47240222,76.87,76.841,0.47646575]
[1771928763481,0.47240222,76.869,76.843,0.47646575]
[1771928764487,0.47240222,76.905,76.851,0.47646575]
[1771928764688,0.47240222,76.907,76.871,0.47646575]
[1771928765388,0.47240222,76.899,76.871,0.47646575]
[1771928766678,0.47240222,76.899,76.873,0.47646575]
[1771928768962,0.47240222,76.899,76.875,0.47646575]
[1771928772087,0.47240222,76.904,76.88,5.2093825]
[1771928772290,0.47240222,76.909,76.881,0.47646575]
[1771928772992,0.1,76.91,76.891,0.47646575]
[1771928774889,0.1,76.91,76.893,0.47646575]
[1771928778186,0.1,76.91,76.895,0.47646575]
[1771928778788,0.57240222,76.91,76.895,0.47646575]
[1771928780302,0.57240222,76.91,76.896,13.00457761]
[1771928781009,0.57240222,76.91,76.887,13.00596183]
[1771928781010,0.47240222,76.909,76.887,13.00596183]
[1771928783911,0.47240222,76.909,76.883,13.00677653]
[1771928784086,0.47240222,76.909,76.884,0.48044707]
[1771928786094,13.10224521,76.91,76.88,5.2093825]
[1771928786095,0.49566213,76.907,76.886,0.47632061]
[1771928787403,0.49566213,76.907,76.887,13.00609986]
[1771928790092,0.49566213,76.907,76.888,0.47632061]
[1771928794006,0.49566213,76.905,76.888,0.47632061]
[1771928796108,0.49566213,76.909,76.889,0.47632061]
[1771928796610,0.49566213,76.909,76.891,0.47632061]
[1771928799303,0.49566213,76.908,76.891,0.47632061]
[1771928800514,0.49566213,76.908,76.891,13.48173146]
[1771928800697,0.49566213,76.908,76.892,0.47632061]
[1771928803504,0.49566213,76.906,76.889,0.47632061]
[1771928806617,0.49566213,76.906,76.881,13.00711489]
[1771928806819,0.49566213,76.905,76.871,0.47632061]
[1771928807004,13.00305571,76.905,76.871,0.47632061]
[1771928807203,13.00305571,76.905,76.863,45.53556326]
[1771928807204,0.49566213,76.908,76.881,0.47632061]
[1771928811220,0.49566213,76.908,76.882,13.0069457]
[1771928811427,0.49566213,76.908,76.883,0.47632061]
[1771928815929,0.49566213,76.908,76.884,13.00660735]
[1771928816229,0.49566213,76.908,76.885,0.49492919]
[1771928820328,0.00166863,76.908,76.886,0.49492919]
[1771928823521,0.00166863,76.908,76.888,0.49492919]
[1771928824137,0.00166863,76.908,76.874,0.5]
[1771928825743,0.00166863,76.908,76.876,0.5]
[1771928830646,0.00166863,76.908,76.881,0.5]
[1771928833527,0.1,76.91,76.882,13.0069457]
[1771928833731,0.1,76.91,76.883,0.5]
[1771928835155,0.1,76.91,76.885,0.5]
[1771928838156,0.1,76.91,76.887,0.5]
[1771928840953,0.1,76.91,76.889,0.5]
[1771928845053,5.30213979,76.91,76.875,0.5]
[1771928845290,5.20213979,76.9,76.871,0.5]
[1771928845739,5.20213979,76.9,76.861,0.5]
[1771928845944,5.20213979,76.89,76.861,0.5]
[1771928847340,5.20213979,76.88,76.854,0.5]
[1771928847567,0.1,76.91,76.861,0.5]
[1771928847568,13.00470419,76.896,76.861,0.5]
[1771928847859,13.00470419,76.896,76.871,0.5]
[1771928849467,5.20213979,76.9,76.866,0.5]
[1771928852668,5.20213979,76.89,76.862,0.5]
[1771928852848,5.20213979,76.89,76.858,13.51096019]
[1771928853650,13.00576155,76.889,76.859,0.5]
[1771928854157,13.00576155,76.889,76.825,55.76002836]
[1771928854158,5.20213979,76.88,76.855,0.5]
[1771928854556,13.00576155,76.889,76.855,0.5]
[1771928857367,5.20213979,76.88,76.85,13.01224001]
[1771928857568,5.20213979,76.87,76.85,13.01224001]
[1771928857873,5.20213979,76.87,76.85,13.51224001]
[1771928858859,5.20213979,76.87,76.851,0.5]
[1771928860178,13.00914542,76.869,76.851,0.5]
[1771928865880,13.00914542,76.869,76.819,5.36086188]
[1771928865881,5.20213979,76.86,76.833,0.5]
[1771928866266,13.00914542,76.869,76.833,0.5]
[1771928866665,13.00914542,76.869,76.835,0.5]
[1771928870380,13.00914542,76.869,76.837,0.5]
[1771928871286,5.20213979,76.86,76.837,0.5]